Cogmind - Beta 16 @@@ ROGUE MODE // 2026.01.05 @ 07:36:45 Player: PE-P51 Result: Self-destructed Performance ------------- Evolutions (5) 2500 Regions Visited (10) 2000 Robots Destroyed (78) 390 Value Destroyed (2679) 2679 Prototype IDs (16) 320 Alien Tech Used (0) 0 Bonus (4852) 4852 TOTAL SCORE: 12741 Bonus ------- High Alert Combat Kills 319 Follower Combat Kills 2995 Network Hubs Disabled 200 Registered with UFD 300 Met Optimus in HQ 500 Built Enhanced Grunts 300 Met R17 at Cetus 500 Friendly Fire -262 Cogmind --------- Core Integrity 605/1000 Matter 300/300 Energy 565/600 System Corruption 3% Temperature Cool (9) Movement Core (500) Ox9 Location -5/Factory Parts ------- > --- POWER (1) -------- (None) > --- PROPULSION (4) --- (None) > --- UTILITY (9) ------ Large Storage Unit Advanced Energy Well Armor Integrity Analyzer Weapon Cycler Improved Thermal Shield > --- WEAPON (3) ------- Mace > --- INVENTORY (15) --- Light Angular Momentum Engine Energy Well (155) Gravity Neutralizer Advanced Signal Interpreter Improved Medium Armor Plating Improved Hacking Suite Authchip [Propulsion] Authchip [Propulsion] Authchip [Propulsion] Advanced Datajack CPS Tube (1) Segregator Botcube Peak State ------------ > --- POWER ------------ Neutrino Core > --- PROPULSION ------- Flexi-carbon Leg Flexi-carbon Leg Myomer Leg Myomer Leg > --- UTILITY ---------- Large Storage Unit Advanced Energy Well Armor Integrity Analyzer Weapon Cycler Improved Medium Armor Plating Improved Thermal Shield Improved Shock Absorption System Improved Hacking Suite Improved System Shield > --- WEAPON ----------- Long-range Proton Cannon Hypervelocity Gauss Cannon Heavy Pick > --- INVENTORY -------- Light Angular Momentum Engine Energy Well Gravity Neutralizer Advanced Signal Interpreter Improved Medium Armor Plating Improved Hacking Suite Authchip [Propulsion] Authchip [Propulsion] Authchip [Propulsion] Flak Gun Advanced Datajack CPS Tube Mace Segregator Botcube [Rating: 97] Favorites ----------- Power Deuterium Engine Engine Deuterium Engine Power Core Light Fission Core Propulsion Myomer Leg Treads Light Treads Leg Myomer Leg Wheel Subdweller Monowheel Utility Large Storage Unit Device Scrap Suit Storage Large Storage Unit Processor Armor Integrity Analyzer Hackware Improved Hacking Suite Protection Hardened Light Armor Plating Weapon Junk Cannon Energy Gun EM Pulse Gun Energy Cannon Subdweller Beam Cannon Ballistic Gun Subdweller Machine Gun Ballistic Cannon Bore Cannon Launcher Grenade Launcher Special Weapon Junk Cannon Impact Weapon Mace Slashing Weapon Power Sword Piercing Weapon Heavy Pick Build | -11 -10 -10 -8 -8 -6 -6 -6 -6 -6 -5 ------- Run | Yrd Mat Sub Rec Scr Fac Ext Cet Arc Hub Fac Slots Evolved 10 | . . . . . 8 . . . . 2 Power . | . . . . . . . . . . . Propulsion 2 | . . . . . 2 . . . . . Utility 7 | . . . . . 6 . . . . 1 Weapon 1 | . . . . . . . . . . 1 Parts Attached 99 | . 5 13 5 11 9 27 2 5 11 11 Power 12 | . . 2 1 . 1 3 . 1 2 2 Engine 8 | . . 2 1 . 1 1 . . 2 1 Core 4 | . . . . . . 2 . 1 . 1 Reactor . | . . . . . . . . . . . Propulsion 26 | . 2 3 2 4 3 8 . . 1 3 Treads 1 | . . . 1 . . . . . . . Leg 19 | . . . . 4 3 8 . . 1 3 Wheel 6 | . 2 3 1 . . . . . . . Hover . | . . . . . . . . . . . Flight . | . . . . . . . . . . . Utility 36 | . 1 3 2 4 5 9 1 4 4 3 Device 17 | . . 2 1 1 1 5 1 1 3 2 Storage 6 | . 1 . 1 2 1 . . . . 1 Processor 3 | . . . . . . 3 . . . . Hackware 3 | . . . . . 1 . . 2 . . Protection 7 | . . 1 . 1 2 1 . 1 1 . Artifact . | . . . . . . . . . . . Weapon 25 | . 2 5 . 3 . 7 1 . 4 3 Energy Gun . | . . . . . . . . . . . Energy Cannon 3 | . . 1 . . . 1 . . . 1 Ballistic Gun 8 | . 1 3 . . . 1 . . 2 1 Ballistic Cannon 2 | . . . . . . 1 . . . 1 Launcher 1 | . 1 . . . . . . . . . Special Weapon 6 | . . 1 . 2 . 2 . . 1 . Impact Weapon 1 | . . . . . . . . . 1 . Slashing Weapon 3 | . . . . 1 . 1 1 . . . Piercing Weapon 1 | . . . . . . 1 . . . . Special Melee Weapon . | . . . . . . . . . . . Unidentified Prototypes 4 | . . 1 . 1 . 2 . . . . Parts Lost 37 | . . 6 . . . 9 . . 6 16 Power 3 | . . 1 . . . . . . 1 1 Propulsion 12 | . . 2 . . . 2 . . 2 6 Utility 13 | . . . . . . 6 . . 1 6 Weapon 9 | . . 3 . . . 1 . . 2 3 Highest Loss Streak 8 | . . 5 . . . 8 . . 4 7 To Critical Strikes . | . . . . . . . . . . . Average Backups 10 | . 4 5 5 11 12 13 15 15 14 13 Power . | . 1 . . . . 1 2 1 . . Propulsion 1 | . 1 . . 2 1 4 3 2 1 . Utility 4 | . . 2 3 4 5 4 5 6 7 8 Weapon 2 | . 1 2 1 2 3 2 3 3 3 2 Tool/Special . | . . . . . . . . . . . Unused Backups 43 | . 10 2 1 10 1 6 . 2 1 10 Power 4 | . 1 1 . . . 1 . 1 . . Propulsion 14 | . 6 . . 2 . 4 . 1 . 1 Utility 16 | . 1 1 1 4 . 1 . . 1 7 Weapon 8 | . 2 . . 4 1 . . . . 1 Tool/Special 1 | . . . . . . . . . . 1 Average Slot Usage (%) 85 | . 98 85 88 84 81 81 93 92 93 88 Engine 9 | . 14 13 14 14 6 4 . . 4 . Leg 18 | . 1 . . 25 25 25 26 26 25 20 Wheel 6 | . 26 18 28 1 . . . . . . Device 9 | . . 12 2 4 8 14 20 14 16 14 Storage 11 | . 27 14 3 14 11 13 13 7 6 7 Processor 1 | . . . . . . 4 6 6 6 5 Hackware 2 | . . . . . 4 1 . 9 13 10 Protection 6 | . . . 10 9 14 1 6 5 3 4 Energy Cannon 2 | . . 8 14 . . . . . . 3 Ballistic Gun 4 | . 26 10 14 . . 2 . . 4 . Ballistic Cannon 1 | . . . . . . 2 6 6 3 3 Special Weapon 4 | . . 1 . 9 6 . 3 . . . Slashing Weapon 1 | . . . . 3 . 1 2 6 2 . Peak Build Rating 97 | . 7 15 17 33 64 78 78 80 80 97 Average Rating 39 | . 6 10 15 25 56 65 76 79 76 81 On Entrance 41 | 6 6 7 15 17 33 64 76 78 80 72 Avg Prop Armor Cover (%) 4 | . . . 3 11 . . . . . . Naked Turns . | . . . . . . . . . . . Heaviest Build 75 | 13 55 56 35 48 71 71 57 62 54 75 Greatest Support 97 | 20 32 40 40 45 79 97 90 90 90 90 Greatest Overweight (x) 11 | . 1 5 11 2 . 1 . . . 2 Average Overweight (x) . | . . 3 1 1 . . . . . . Largest Inventory Capacity 20 | . 20 20 8 15 15 15 15 15 15 15 Average Capacity 14 | . 19 19 5 13 15 15 15 15 15 15 Most Carried 15 | . 8 8 8 15 15 15 15 15 15 15 Average Carried 11 | . 4 6 5 12 13 14 15 14 14 14 Final Capacity 20 | 8 20 5 8 15 15 15 15 15 15 15 Final Carried 15 | 6 5 5 8 15 14 15 15 15 15 13 Scrap Suit Usage (%) 24 | . . . . . . 69 100 100 85 . Parts Cannibalized 23 | . . . . . . 6 1 2 14 . Class Distribution -------------------- 61% | Mutant 23% | Commander-Mutant 7% | Subdweller-Mutant 6% | Scavenger-Mutant Dominant Class ---------------- Mutant | -10/Materials Mutant | -10/Subcaves Subdweller-Mutant | -8/Recycling Mutant | -8/Scraptown Mutant | -6/Factory Commander-Mutant | -6/Extension Commander-Mutant | -6/Cetus Commander-Mutant | -6/Archives Scavenger-Mutant | -6/Hub_04(d) Scavenger-Mutant | -5/Factory Resources | -11 -10 -10 -8 -8 -6 -6 -6 -6 -6 -5 ----------- Run | Yrd Mat Sub Rec Scr Fac Ext Cet Arc Hub Fac Matter Collected 2707 | 200 59 297 126 110 134 503 170 95 497 516 Remotely . | . . . . . . . . . . . Salvage Created 3447 | . 111 140 557 . 406 501 191 191 1046 304 Parts 160 | . 6 12 16 . 13 22 14 16 47 14 Haulers Intercepted 4 | . . . . . . . . . 4 . Recyclers Shooed 6 | . . . 2 . . 2 . . 2 . Parts Field Recycled . | . . . . . . . . . . . Retrieved Matter . | . . . . . . . . . . . Parts Self-Destructed 25 | . . 25 . . . . . . . . Prevented . | . . . . . . . . . . . Parts Restored . | . . . . . . . . . . . Kills | -11 -10 -10 -8 -8 -6 -6 -6 -6 -6 -5 ------- Run | Yrd Mat Sub Rec Scr Fac Ext Cet Arc Hub Fac Combat Hostiles Destroyed 42 | . 2 7 2 . 8 7 3 1 6 6 Melee 8 | . . 1 . . . 5 . . . 2 Guns 7 | . 2 2 . . . . . . 3 . Cannons 18 | . . . 2 . 5 2 3 1 3 2 AOE 4 | . . 3 . . . . . . . 1 Classes Destroyed 17 | . 2 3 2 . 3 3 1 . 2 1 Worker 11 | . . . . . . 1 . . 10 . Builder 4 | . 1 . . . . . . . 3 . Tunneler 2 | . . . . . . 1 . . 1 . Hauler 4 | . . . . . . . . . 4 . Recycler 8 | . . . 6 . . 1 . . 1 . Operator 5 | . . . . . 1 1 . 3 . . Turret 1 | . . 1 . . . . . . . . Swarmer 8 | . . 5 . . . 3 . . . . Grunt 14 | . 2 . . . 5 2 . . 2 3 Duelist 1 | . . . . . . . . . . 1 Protector 1 | . . . . . . . . . . 1 Sentry 5 | . . . 2 . . 2 . 1 . . Demolisher 1 | . . . . . . . . . 1 . Hunter 1 | . . . . . 1 . . . . . Programmer 6 | . . . . . 2 . . . 3 1 Cetus Guard 3 | . . . . . . . 3 . . . Subdweller 2 | . . 2 . . . . . . . . Botcube 1 | . . . . . . . 1 . . . Butcher 1 | . . . . . . 1 . . . . Best Kill Streak 7 | . 2 3 3 . 3 3 3 2 7 2 Combat Bots Only 3 | . 1 3 1 . 3 2 3 1 1 2 Max Kills in Single Turn 4 | . 1 3 1 . 1 1 1 1 4 1 Gunslinging . | . . . . . . . . . . . Exploded 3 | . . 3 . . . . . . . 1 Melee 1 | . . 1 . . . 1 . . . 1 Uniques/NPCs Destroyed . | . . . . . . . . . . . Combat | -11 -10 -10 -8 -8 -6 -6 -6 -6 -6 -5 -------- Run | Yrd Mat Sub Rec Scr Fac Ext Cet Arc Hub Fac Hostile Shots Fired 633 | . 11 72 . . 68 197 2 8 122 153 Missed 200 | . 4 20 . . 32 63 1 4 39 37 Hits 433 | . 7 52 . . 36 134 1 4 83 116 Melee 2 | . . . . . . . . . . 2 Projectile 431 | . 7 52 . . 36 134 1 4 83 114 AOE 5 | . . . . . . . . . 5 . Critical Strikes 13 | . . 1 . . . 3 1 . 4 4 Damage Taken 6746 | . 104 792 . . 457 1782 123 134 1381 1973 Core 1087 | . 31 214 . . 33 254 . 19 141 395 Absorbed by Shields 76 | . . . . . . 35 41 . . . Ignored by Resistances 442 | . . . . . . . . . . 442 Regen/Repaired (Parts) 609 | . . . . . . 309 9 18 117 156 Core Remaining (%) 49 | 100 . . . 2 . . . . 47 . Volleys Fired 275 | . 14 25 35 1 27 50 16 5 78 24 Largest 3 | . 2 2 2 1 1 2 1 1 2 3 Hottest 160 | . 40 110 110 . . 90 48 48 56 160 Shots Fired 359 | . 27 38 70 1 27 51 16 5 89 35 Gun 147 | . 26 27 35 . . 17 . . 35 7 Cannon 170 | . . 6 35 . . 30 13 5 53 28 Launcher 6 | . 1 5 . . . . . . . . Special 36 | . . . . 1 27 4 3 . 1 . Kinetic 264 | . 26 27 35 . . 39 13 5 88 31 Thermal 49 | . . 6 35 . . 8 . . . . Explosive 6 | . 1 5 . . . . . . . . Electromagnetic 4 | . . . . . . . . . . 4 Impact 29 | . . . . . 27 2 . . . . Robot Hit Streak 12 | . 10 5 12 3 10 3 3 1 5 4 Robot Miss Streak 8 | . 2 2 1 . 1 3 2 3 7 8 Penetration Max 2 | . . . . . . 1 1 . 2 . Secondary Targets . | . . . . . . . . . . . Shots Hit Robots 221 | . 20 23 14 1 20 44 10 9 50 30 Core Hits 114 | . 7 12 6 . 3 19 6 4 38 19 Critical Kills 18 | . . 1 2 . . 2 3 1 7 2 Critical Parts Destroyed 22 | . . . . . 2 6 1 . 6 7 Critical Strikes 46 | . . 1 2 . 2 10 4 2 13 12 Meltdown 3 | . . 1 2 . . . . . . . Destroy 36 | . . . . . . 9 4 1 13 9 Smash 2 | . . . . . 2 . . . . . Sever 2 | . . . . . . 1 . 1 . . Impale 3 | . . . . . . . . . . 3 Melee Attacks 68 | . . . . . . 20 6 7 19 16 Impact 9 | . . . . . . . . . 6 3 Slashing 40 | . . . . . . 14 6 7 13 . Piercing 19 | . . . . . . 6 . . . 13 Sneak Attacks 26 | . . . . . . 4 6 5 10 1 Combat Hostiles 2 | . . . . . . . . . 1 1 Follow-up Attacks 3 | . . . . . . . . . . 3 Damage Inflicted 8923 | . 230 568 394 . 1408 1523 601 735 2382 1082 Guns 1409 | . 218 311 113 . . 155 . . 507 105 Cannons 1865 | . . 82 281 . . 564 143 59 506 230 Explosions 971 | . . 168 . . . . . . 468 335 Melee 3205 | . . . . . . 776 458 676 883 412 Ramming 65 | . 12 7 . . . 28 . . 18 . Kinetic 2690 | . 218 311 113 . . 528 143 59 1013 305 Thermal 554 | . . 82 281 . . 191 . . . . Explosive 503 | . . 168 . . . . . . . 335 Electromagnetic 498 | . . . . . . . . . 468 30 Impact 1833 | . . . . . 1408 . . . 317 108 Slashing 2186 | . . . . . . 486 458 676 566 . Piercing 594 | . . . . . . 290 . . . 304 Highest Corruption 3 | . . . . . . . . . 3 3 Average Corruption 2 | . . . . . . . . . 2 2 Corruption Purged . | . . . . . . . . . . . Corruption Blocked 1 | . . . . . . 1 . . . . Effects 16 | . . . . . . . . . 14 2 Message Errors 3 | . . . . . . . . . 2 1 Matter Fused 3 | . . . . . . . . . 2 1 Heat Flow Errors 5 | . . . . . . . . . 5 . Parts Fused 1 | . . . . . . . . . 1 . Data Loss (minor) 2 | . . . . . . . . . 2 . Data Loss (major) 1 | . . . . . . . . . 1 . Misfires 1 | . . . . . . . . . 1 . Overload Shots . | . . . . . . . . . . . Overflow Damage 1032 | . . . 19 . 438 62 . 216 265 32 Projectiles 464 | . . . 19 . 438 7 . . . . Explosions 75 | . . . . . . . . . 75 . Melee 493 | . . . . . . 55 . 216 190 32 Knockbacks 13 | . . . . . 6 1 1 . 1 4 Impact 5 | . . . . . 5 . . . . . Kinetic 7 | . . . . . . 1 1 . 1 4 Secondary 1 | . . . . . 1 . . . . . Self-Inflicted Damage 123 | . 6 3 . . . . . . 65 49 Shots 2 | . . . . . . . . . 1 1 Rammed 3 | . 1 1 . . . . . . . 1 Targets Rammed 10 | . 1 1 . . . 4 . . 3 1 Kicked 7 | . . . . . . 4 . . 3 . Crushed . | . . . . . . . . . . . Highest Temperature 240 | . 9 18 144 . . 197 . . 240 236 Average Temperature 64 | . 9 7 44 . . 95 . . 52 110 Received Heat Transfer 1822 | . 60 237 . . 183 420 . 18 268 636 Siege Activations . | . . . . . . . . . . . Martial Activations . | . . . . . . . . . . . Shielding Activations . | . . . . . . . . . . . Robots Disrupted . | . . . . . . . . . . . Combat Hostiles . | . . . . . . . . . . . Robots Corrupted 6 | . . . . . 4 . . . 1 1 Combat Hostiles 4 | . . . . . 3 . . . . 1 Parts Fried 6 | . . . . . 4 . . . 2 . Impact Corruptions 17 | . . . . . 12 . . . 4 1 Robots Melted 3 | . . 1 2 . . . . . . . Combat Hostiles 1 | . . 1 . . . . . . . . Parts Melted 1 | . . . 1 . . . . . . . Heat Transferred 781 | . . 111 370 . . 300 . . . . Parts Sabotaged . | . . . . . . . . . . . Parts Stolen . | . . . . . . . . . . . Parts Stripped . | . . . . . . . . . . . Power Chain Reactions . | . . . . . . . . . . . Alert | -11 -10 -10 -8 -8 -6 -6 -6 -6 -6 -5 ------- Run | Yrd Mat Sub Rec Scr Fac Ext Cet Arc Hub Fac Maximum Alert Level 4 | . . . . . . 2 2 . 4 3 Low Security (%) 52 | . 100 . 100 . 100 38 . 100 19 . Level 1 24 | . . . . . . 40 83 . 9 33 Level 2 10 | . . . . . . 21 16 . 1 34 Level 3 5 | . . . . . . . . . 25 31 Level 4 6 | . . . . . . . . . 43 . Level 5 . | . . . . . . . . . . . High Security . | . . . . . . . . . . . Max Security . | . . . . . . . . . . . Peak Influence 1564 | . 55 . 53 . 127 642 478 192 1564 776 Initial 765 | . . . 29 . . 44 296 118 32 765 Average 279 | . 13 . 6 . 30 259 336 141 787 574 Influence Increases 5914 | . 72 368 214 . 382 1604 492 194 2306 282 Destroy 0b10 Robot/C 2240 | . 40 160 40 . 200 700 220 80 700 100 Destroy 0b10 Robot/NC 245 | . 5 . 30 . 5 45 10 15 130 5 Destroy Leader 326 | . 10 10 . . 60 66 20 . 160 . Allied During Kill 1789 | . . 3 . . 26 581 240 95 840 4 Successful Hack 164 | . . . 15 . 27 76 . . 22 24 Select Force Hacks 90 | . . . 90 . . . . . . . Disable Machine 330 | . . . 15 . 30 30 . . 225 30 Destroy Structure 310 | . 2 . 24 . 4 16 2 4 214 44 Partial Spotted 15 | . . . . . . 15 . . . . Lose Combat Pursuer 405 | . 15 195 . . 30 75 . . 15 75 Influence Decreases 5621 | . 72 306 276 . 291 1165 726 398 834 1553 Entered New Map 1351 | . . . 33 . . 47 234 178 60 799 Time Decay 2755 | . 72 211 243 . 291 658 392 140 494 254 Lost Part 310 | . . . . . . 90 . . 60 160 Lost Ally 755 | . . 95 . . . 220 100 80 220 40 Purge Threat 450 | . . . . . . 150 . . . 300 Squads Dispatched 24 | . . . . . 4 4 . . 14 2 Investigation 3 | . . . . . 1 2 . . . . Extermination 6 | . . . . . 2 . . . 3 1 Reinforcement 9 | . . . . . 1 2 . . 6 . Assault 3 | . . . . . . . . . 2 1 Garrison 3 | . . . . . . . . . 3 . Intercept . | . . . . . . . . . . . Searches Triggered . | . . . . . . . . . . . Construction Impeded 5 | . . . . . . 1 . . 4 . Haulers Reinforced . | . . . . . . . . . . . Active Scanning Responses . | . . . . . . . . . . . Cargo Convoy Interrupts . | . . . . . . . . . . . Stealth | -11 -10 -10 -8 -8 -6 -6 -6 -6 -6 -5 --------- Run | Yrd Mat Sub Rec Scr Fac Ext Cet Arc Hub Fac Distress Signals 6 | . . . . . . 1 2 . 3 . Communications Jammed . | . . . . . . . . . . . Distress Signals . | . . . . . . . . . . . Times Spotted 152 | . 3 15 1 . 12 40 15 8 42 16 Peak Tracking Total 7 | . 2 6 1 . 4 7 5 2 6 6 Tactical Retreats 17 | . 1 5 . . 2 5 . . 1 3 Traps | -11 -10 -10 -8 -8 -6 -6 -6 -6 -6 -5 ------- Run | Yrd Mat Sub Rec Scr Fac Ext Cet Arc Hub Fac Traps Triggered 5 | . . 1 . . . 2 . . 2 . Indirectly 2 | . . . . . . . . . 2 . Trap Hack Attempts . | . . . . . . . . . . . Triggered . | . . . . . . . . . . . Disarmed 4 | . . . . . . 4 . . . . Reprogrammed . | . . . . . . . . . . . Reused . | . . . . . . . . . . . Traps Extracted . | . . . . . . . . . . . Installed . | . . . . . . . . . . . Triggered . | . . . . . . . . . . . Machines | -11 -10 -10 -8 -8 -6 -6 -6 -6 -6 -5 ---------- Run | Yrd Mat Sub Rec Scr Fac Ext Cet Arc Hub Fac Machines Disabled 26 | . . 3 1 . 2 3 . . 15 2 Max in Single Turn 11 | . . 2 1 . 1 1 . . 11 2 Garrison Access 1 | . . . . . . . . . 1 . Network Hub 1 | . . . . . . . . . 1 . Machines Repaired . | . . . . . . . . . . . Machines Dismantled . | . . . . . . . . . . . Machines Sabotaged . | . . . . . . . . . . . Overloaded Fab Kills . | . . . . . . . . . . . Hacking | -11 -10 -10 -8 -8 -6 -6 -6 -6 -6 -5 --------- Run | Yrd Mat Sub Rec Scr Fac Ext Cet Arc Hub Fac Machines Accessed 45 | . . . 9 3 5 15 1 . 9 3 Terminals 30 | . . . 6 . 1 13 1 . 8 1 Fabricators . | . . . . . . . . . . . Repair Stations 2 | . . . . . . 1 . . . 1 Recycling Units 9 | . . . 3 . 4 1 . . . 1 Scanalyzers . | . . . . . . . . . . . Garrison Access 1 | . . . . . . . . . 1 . Total Hacks 128 | . . . 19 15 11 40 2 . 24 17 Successful 69 | . . . 7 15 4 24 . . 10 9 Failed 59 | . . . 12 . 7 16 2 . 14 8 Catastrophic 9 | . . . 1 . . 3 . . 3 2 Database Lockouts . | . . . . . . . . . . . Manual 44 | . . . 10 . 8 9 1 . 7 9 Terminals 77 | . . . 15 . 2 27 2 . 21 10 Fabricators . | . . . . . . . . . . . Repair Stations 13 | . . . . . . 9 . . . 4 Recycling Units 20 | . . . 4 . 9 4 . . . 3 Scanalyzers . | . . . . . . . . . . . Garrison Access 3 | . . . . . . . . . 3 . Terminal Hacks 45 | . . . 2 15 1 14 . . 7 6 Record 16 | . . . . 15 . . . . . 1 Part Schematic 3 | . . . . . . . . . 3 . Robot Schematic 1 | . . . 1 . . . . . . . Prototype ID Bank 1 | . . . . . . . . . . 1 Open Door 7 | . . . . . 1 6 . . . . Terminal Index 1 | . . . . . . 1 . . . . Recycling Unit Index 2 | . . . 1 . . 1 . . . . Alert Level 3 | . . . . . . 1 . . . 2 Unreport Threat 3 | . . . . . . 1 . . . 2 Disarm Traps 1 | . . . . . . 1 . . . . Surveillance Status 1 | . . . . . . 1 . . . . Recall Reinforcements 1 | . . . . . . . . . 1 . Hauler Manifests 1 | . . . . . . 1 . . . . Registered Components 1 | . . . . . . . . . 1 . Zone Layout 3 | . . . . . . 1 . . 2 . Fabricator Hacks . | . . . . . . . . . . . Repair Station Hacks 9 | . . . . . . 7 . . . 2 Scan Component 5 | . . . . . . 4 . . . 1 Repair 4 | . . . . . . 3 . . . 1 Recycling Unit Hacks 2 | . . . . . 1 1 . . . . Retrieve Components 2 | . . . . . 1 1 . . . . Scanalyzer . | . . . . . . . . . . . Garrison Access Hacks 1 | . . . . . . . . . 1 . Seal Access 1 | . . . . . . . . . 1 . Unauthorized Hacks 12 | . . . 5 . 2 2 . . 2 1 Terminals 5 | . . . 2 . . 1 . . 2 . Assimilate 1 | . . . . . . . . . 1 . Botnet 4 | . . . 2 . . 1 . . 1 . Fabricators . | . . . . . . . . . . . Repair Stations . | . . . . . . . . . . . Recycling Units 7 | . . . 3 . 2 1 . . . 1 Reject 2 | . . . . . 2 . . . . . Recyclers 1 | . . . . . . . . . . 1 Mask 1 | . . . . . . 1 . . . . Tunnel 3 | . . . 3 . . . . . . . Scanalyzers . | . . . . . . . . . . . Garrison Access . | . . . . . . . . . . . Data Cores Recovered 1 | . . . . . . . . . 1 . Used . | . . . . . . . . . . . Hacking Detections 30 | . . . 6 . 3 10 1 . 8 2 Full Trace Events 6 | . . . 3 . 1 2 . . . . Feedback Events . | . . . . . . . . . . . Feedback Blocked . | . . . . . . . . . . . Robot Schematics Acquired 1 | . . . 1 . . . . . . . Robots Built . | . . . . . . . . . . . Authchips . | . . . . . . . . . . . Time . | . . . . . . . . . . . Total Robot Build Rating . | . . . . . . . . . . . Part Schematics Acquired 3 | . . . . . . . . . 3 . Parts Built . | . . . . . . . . . . . Authchips . | . . . . . . . . . . . Time . | . . . . . . . . . . . Total Part Build Rating . | . . . . . . . . . . . Part Studies Acquired . | . . . . . . . . . . . Parts Repaired 4 | . . . . . . 3 . . . 1 Time 220 | . . . . . . 198 . . . 22 Parts Recycled . | . . . . . . . . . . . Recycled Matter . | . . . . . . . . . . . Retrieved Matter . | . . . . . . . . . . . Retrieved Components 10 | . . . . . . 10 . . . . Parts Scanalyzed . | . . . . . . . . . . . Part Schematics Acquired . | . . . . . . . . . . . Parts Damaged . | . . . . . . . . . . . Bothacking | -11 -10 -10 -8 -8 -6 -6 -6 -6 -6 -5 ------------ Run | Yrd Mat Sub Rec Scr Fac Ext Cet Arc Hub Fac Used RIF Installer . | . . . . . . . . . . . Robots Hacked 2 | . . . . . . . 2 . . . Non-combat . | . . . . . . . . . . . Combat 2 | . . . . . . . 2 . . . Robot Hacks Applied 2 | . . . . . . . 2 . . . parse_system 2 | . . . . . . . 2 . . . Relay Couplers Released . | . . . . . . . . . . . Fabnet Peak Effective % . | . . . . . . . . . . . Robots Rewired 25 | . . . . . . 25 . . . . Allies Hacked . | . . . . . . . . . . . Hacks Repelled . | . . . . . . . . . . . Allies | -11 -10 -10 -8 -8 -6 -6 -6 -6 -6 -5 -------- Run | Yrd Mat Sub Rec Scr Fac Ext Cet Arc Hub Fac Total Allies 45 | . . 5 . 1 . 33 6 . . . Largest Group 22 | . . 2 . 1 1 21 22 21 15 2 Highest-Rated Group 1074 | . . 38 . 57 57 724 1074 1054 703 78 Highest-Rated Ally 159 | . . 19 . 57 57 159 159 159 96 58 Total Orders 3 | . . . . . . . 2 . 1 . STAY 2 | . . . . . . . 1 . 1 . FOLLOW 1 | . . . . . . . 1 . . . Ally Attacks 450 | . . 9 . . 15 185 77 25 135 4 Total Damage 11935 | . . 160 . . 510 4186 1883 741 4337 118 Kills 91 | . . 3 . . 2 34 10 4 38 . Allies Corrupted . | . . . . . . . . . . . Allies Melted 3 | . . . . . . 2 . . . 1 Intel | -11 -10 -10 -8 -8 -6 -6 -6 -6 -6 -5 ------- Run | Yrd Mat Sub Rec Scr Fac Ext Cet Arc Hub Fac Active Infowar (turns) 125 | . . . . . 90 35 . . . . ECM 125 | . . . . . 90 35 . . . . Robot Analysis Total . | . . . . . . . . . . . Derelict Logs Recovered 5 | . . 1 . 4 . . . . . . Drone Launches . | . . . . . . . . . . . Drone Recoveries . | . . . . . . . . . . . Exploration | -11 -10 -10 -8 -8 -6 -6 -6 -6 -6 -5 ------------- Run | Yrd Mat Sub Rec Scr Fac Ext Cet Arc Hub Fac Turns Passed 16688 | . 284 2333 1553 5805 1164 2466 938 287 1316 542 Spaces Moved 9017 | 1 111 909 981 3178 600 1298 605 166 870 298 Core 665 | . . . 177 488 . . . . . . Treads 1 | . . . 1 . . . . . . . Legs 6534 | 1 6 . . 2690 600 1298 605 166 870 298 Wheels 1817 | . 105 909 803 . . . . . . . Hover . | . . . . . . . . . . . Flight . | . . . . . . . . . . . Fastest Speed 100 | 120 115 107 100 100 122 120 120 120 120 120 Average Speed 145 | 120 115 145 134 179 122 121 120 120 120 122 Slowest Speed 600 | 120 120 155 600 260 122 190 120 120 120 260 Overloaded Moves . | . . . . . . . . . . . Propulsion Burnouts . | . . . . . . . . . . . Robots Hopped . | . . . . . . . . . . . Potential Cave-ins . | . . . . . . . . . . . Cave-ins Triggered . | . . . . . . . . . . . Exploration Rate (%) 50 | 2 20 41 99 90 11 86 76 67 60 7 Regions Visited 10 Branch Regions 7 Pre-discovered Areas 6 | . . 2 3 1 . . . . . . Known Exits Taken . | . . . . . . . . . . . Unknown Exits Taken 10 | 1 1 1 1 1 1 1 1 1 1 . Scrap Searched 6 | . . 3 . 3 . . . . . . Spaces Dug 29 | . . . 20 . 1 . . . 8 . Terrain Destroyed 323 | . 2 23 31 . 4 10 1 4 221 27 Melee 4 | . . . . . . . . . 4 . Projectile 79 | . . . 31 . 4 10 1 4 29 . AOE 240 | . 2 23 . . . . . . 188 27 Terrain Rammed . | . . . . . . . . . . . Walls Destroyed . | . . . . . . . . . . . Machines Disabled . | . . . . . . . . . . . Actions | -11 -10 -10 -8 -8 -6 -6 -6 -6 -6 -5 --------- Run | Yrd Mat Sub Rec Scr Fac Ext Cet Arc Hub Fac Total 12173 | . 245 1886 1148 3284 1003 2107 797 242 1048 413 Wait 2303 | . 103 918 116 30 362 462 162 47 48 55 Move 9007 | . 110 908 980 3177 599 1297 604 165 869 298 Hop . | . . . . . . . . . . . Pick Up 76 | . 4 7 7 30 3 12 2 4 4 3 Fast Attach 34 | . 1 3 1 4 4 10 . 1 4 6 Attach 32 | . 3 7 2 3 4 5 . . 4 4 Detach 13 | . 3 4 . 3 . 1 . . 2 . Swap 61 | . 1 7 3 7 2 18 3 5 9 6 Drop 84 | . 5 6 4 29 2 15 4 8 8 3 Fire 275 | . 14 25 35 1 27 50 16 5 78 24 Melee 65 | . . . . . . 20 6 7 19 13 Ram 3 | . 1 1 . . . . . . . 1 Kick 7 | . . . . . . 4 . . 3 . Crush . | . . . . . . . . . . . Escape Stasis 10 | . . . . . . 10 . . . . Rewire 203 | . . . . . . 203 . . . . Trap . | . . . . . . . . . . . Miscellaneous . | . . . . . . . . . . . Route ------- -11/Scrapyard -10/Materials -10/Subcaves (discovered 2 exits: [*Mat] / *Rec) -8/Recycling (discovered 2 exits: *Fac / *Scr) -8/Scraptown (discovered 2 exits: *Fac x2) -6/Factory -6/Extension (discovered 2 exits: *Fac / *Cet) -6/Cetus (discovered 3 exits: *Fac x2 / *Arc) -6/Archives (discovered 2 exits: *Hub x2) -6/Hub_04(d) (discovered 2 exits: *Fac x2) -5/Factory History --------- Turn | Location | Event 1 | -11/Scrapyard | Discovered new exit (range 0) 1 | -11/Scrapyard | Entered Materials 275 | -10/Materials | Discovered new exit (range 9) 285 | -10/Materials | Entered Subcaves 286 | -10/Subcaves | Approached by a straggling Scientist 300 | -10/Subcaves | A swath of the cavern ceiling suddenly collapsed 313 | -10/Subcaves | Build established: Mutant 329 | -10/Subcaves | Learned location of Zion (-6) 329 | -10/Subcaves | Met a Zionite searching for "candidates" 369 | -10/Subcaves | Core integrity fell below 50% 412 | -10/Subcaves | Lost 5 parts (1p2n2w) 594 | -10/Subcaves | Discovered new exit (range 6) 650 | -10/Subcaves | Visited triangular shrine 659 | -10/Subcaves | Found Prototype Device 659 | -10/Subcaves | Identified V3-11A's Pendant 664 | -10/Subcaves | Befriended Subdweller 1134 | -10/Subcaves | Befriended Subdweller 1144 | -10/Subcaves | Shifting Twisted Machinery released Mak. Hammer 1319 | -10/Subcaves | Befriended Subdweller 1890 | -10/Subcaves | Approached by friendly Subdweller 1971 | -10/Subcaves | Discovered new exit (range 13) 1980 | -10/Subcaves | Core integrity fell below 20% 2040 | -10/Subcaves | Approached by friendly Subdweller 2618 | -10/Subcaves | Entered Recycling 2870 | -8/Recycling | Build established: Subdweller-Mutant 3295 | -8/Recycling | Discovered new exit (range 16) 3343 | -8/Recycling | Scanned before Scraplab entrance 4142 | -8/Recycling | Build established: Mutant 4153 | -8/Recycling | Entered Scraplab 4165 | -8/Recycling | Discovered new exit (range 4) 4171 | -8/Recycling | Entered Scraptown 4301 | -8/Scraptown | Delivered V3-11A's Pendant to T0-NE2 in exchange for information 4425 | -8/Scraptown | Heard Great Nut preacher, LISTEN AND RECITE! 4451 | -8/Scraptown | Scanned Subdweller tech in exchange for log data 4462 | -8/Scraptown | Learned location of 1 exit from Proximity Caves 4463 | -8/Scraptown | Learned Factory stockpile data 4464 | -8/Scraptown | Learned location of 1 exit from Research 4488 | -8/Scraptown | Visited Assassins FH 4674 | -8/Scraptown | Discovered new exit (range 13) 4753 | -8/Scraptown | Visited Supply Room 4791 | -8/Scraptown | Visited The Evicted 4866 | -8/Scraptown | Visited Cyclists 4883 | -8/Scraptown | Visited Red Mages 4898 | -8/Scraptown | Visited Fellowship of the Rings 5107 | -8/Scraptown | Visited Shadow of the Wyrm 5169 | -8/Scraptown | Visited UFD Registry 5169 | -8/Scraptown | Registered with UFD as "Microskull" 5199 | -8/Scraptown | Visited Science Testing Area 5221 | -8/Scraptown | Visited Curators Association 5251 | -8/Scraptown | Visited Supply Room 5293 | -8/Scraptown | Delivered Scrap Shield to a Scientist 5511 | -8/Scraptown | Visited Junk Cannon Lab 5549 | -8/Scraptown | Visited Research Penetration Think Tank 5592 | -8/Scraptown | Visited Scrap Suit Storage 5632 | -8/Scraptown | Visited Scrapoid Pod Storage 5663 | -8/Scraptown | Visited Junk Repository 5729 | -8/Scraptown | Visited Science Guys 5811 | -8/Scraptown | Visited Botcube Research 5994 | -8/Scraptown | Found Prototype Special Weapon 5994 | -8/Scraptown | Identified Junk Cannon 6213 | -8/Scraptown | Found Scrap Suit 6269 | -8/Scraptown | Found Botcube 8019 | -8/Scraptown | Entered Cyclist Reading Room 9456 | -8/Scraptown | Botcube activated 9472 | -8/Scraptown | Botcube completed mutation into legged form, armed with 1 gun, 1 cannon. 9474 | -8/Scraptown | Attached CPS modules to Mutated Botcube. 9790 | -8/Scraptown | Found Scrap Suit 9883 | -8/Scraptown | Met Optimus 9883 | -8/Scraptown | Accepted into 0bPrime 9949 | -8/Scraptown | Discovered new exit (range 3) 9976 | -8/Scraptown | Entered Factory 9976 | -6/Factory | Accompanied by 1 ally 9976 | -6/Factory | Evolved 8 slots: Propulsion x2, Utility x6 11091 | -6/Factory | Discovered new exit (range 5) 11140 | -6/Factory | Entered Extension 11140 | -6/Extension | Accompanied by 1 ally 11191 | -6/Extension | Rescued a captive Derelict 11382 | -6/Extension | Lost 8 parts (2n5u1w) 11436 | -6/Extension | Found Botcube 11698 | -6/Extension | Botcube activated 11716 | -6/Extension | Botcube completed mutation into legged form, armed with 2 guns. 11720 | -6/Extension | Attached CPS modules to Mutated Botcube. 11777 | -6/Extension | Build established: Commander-Mutant 12090 | -6/Extension | Disrupted transfer network 12229 | -6/Extension | Rescued a captive Derelict 12370 | -6/Extension | Repaired Broken Myomer Leg 12433 | -6/Extension | Repaired Myomer Leg 12485 | -6/Extension | Repaired Bore Cannon 12904 | -6/Extension | Spotted B-75 Beast 12914 | -6/Extension | Allies destroyed B-75 Beast 12920 | -6/Extension | Spotted B-75 Beast 12936 | -6/Extension | Allies destroyed B-75 Beast 12960 | -6/Extension | Lost 7 allies 13139 | -6/Extension | Rescued A7 13148 | -6/Extension | Rescued a captive Derelict 13149 | -6/Extension | Rescued a captive Derelict 13180 | -6/Extension | Rescued a captive Derelict 13181 | -6/Extension | Rescued a captive Derelict 13279 | -6/Extension | Rescued a captive Derelict 13473 | -6/Extension | Discovered new exit (range 10) 13474 | -6/Extension | Discovered new exit (range 6) 13541 | -6/Extension | Attached CPS modules to A7. 13606 | -6/Extension | Entered Cetus 13606 | -6/Cetus | Accompanied by 21 allies (A7) 13611 | -6/Cetus | Acquired a Cetus Manufacturing Module code from A7 13627 | -6/Cetus | Spotted Cetus Guard 13628 | -6/Cetus | Spotted Cetus Guard 13628 | -6/Cetus | Spotted Cetus Guard 13630 | -6/Cetus | Spotted Cetus Guard 13631 | -6/Cetus | Allies destroyed Cetus Guard 13634 | -6/Cetus | Allies destroyed Cetus Guard 13643 | -6/Cetus | Allies destroyed Cetus Guard 13649 | -6/Cetus | Allies destroyed Cetus Guard 13703 | -6/Cetus | Started Cetus Manufacturing Module 13722 | -6/Cetus | Discovered new exit (range 16) 13728 | -6/Cetus | Manufactured an Enhanced Grunt 13753 | -6/Cetus | Manufactured an Enhanced Grunt 13760 | -6/Cetus | Spotted Cetus Guard 13762 | -6/Cetus | Spotted Cetus Guard 13763 | -6/Cetus | Spotted Cetus Guard 13763 | -6/Cetus | Spotted Cetus Guard 13765 | -6/Cetus | Destroyed Cetus Guard 13770 | -6/Cetus | Destroyed Cetus Guard 13772 | -6/Cetus | Destroyed Cetus Guard 13776 | -6/Cetus | Allies destroyed Cetus Guard 13778 | -6/Cetus | Manufactured an Enhanced Grunt 13780 | -6/Cetus | Discovered new exit (range 16) 13798 | -6/Cetus | Met Revision 17 13803 | -6/Cetus | Manufactured an Enhanced Grunt 13828 | -6/Cetus | Manufactured an Enhanced Grunt 13926 | -6/Cetus | Discovered new exit (range 16) 14253 | -6/Cetus | Murdered Mutated Botcube 14253 | -6/Cetus | Destroyed Mutated Botcube 14356 | -6/Cetus | Security sweep announced 14402 | -6/Cetus | Botcube activated 14420 | -6/Cetus | Botcube completed mutation into legged form, armed with 2 guns. 14544 | -6/Cetus | Entered Archives 14544 | -6/Archives | Accompanied by 21 allies (A7) 14594 | -6/Archives | Lost 5 allies 14669 | -6/Archives | Discovered new exit (range 15) 14689 | -6/Archives | Discovered new exit (range 15) 14703 | -6/Archives | Unable to access archive contents 14831 | -6/Archives | Entered Hub_04(d) 14831 | -6/Hub_04(d) | Accompanied by 15 allies 14855 | -6/Hub_04(d) | Discovered new exit (range 9) 15069 | -6/Hub_04(d) | Discovered new exit (range 16) 15211 | -6/Hub_04(d) | Garrison activated, responded to threat 15260 | -6/Hub_04(d) | Lost 3 allies 15531 | -6/Hub_04(d) | First assault squad dispatched 15630 | -6/Hub_04(d) | Core integrity fell below 50% 15633 | -6/Hub_04(d) | Lost 4 parts (1p2n1u) 15641 | -6/Hub_04(d) | Lost 7 allies 15879 | -6/Hub_04(d) | Build established: Scavenger-Mutant 16131 | -6/Hub_04(d) | Network Hub disabled 16147 | -6/Hub_04(d) | Entered Factory 16147 | -5/Factory | Accompanied by 2 allies 16147 | -5/Factory | Evolved 2 slots: Utility x1, Weapon x1 16230 | -5/Factory | Repaired Imp. Medium Armor Plating 16318 | -5/Factory | Found Botcube 16447 | -5/Factory | First assault squad dispatched 16649 | -5/Factory | Lost 7 parts (3n2u2w) 16689 | -5/Factory | Self-destructed Last Messages --------------- 16647_ Pressure Siphon disabled. 16649_ ALERT: Cargo convoy en route, clear transfer corridor. 16649_ Carbon-fiber Leg destroyed. 16653_ P-70 Sage suffers critical hit (Impale). 16653_ P-70 Sage destroyed. 16653_ Sneak attack on I-47 Archangel. 16653_ Mace follow-up attack on I-47 Archangel. 16653_ Destroyed Com. Battery. 16653_ I-47 Archangel system corrupted by crushing effect. 16654_ I-47 Archangel system terminally corrupted. 16657_ System corrupted: Matter fused (-9). 16658_ Acquired 78 matter. 16665_ Neutrino Core destroyed. 16672_ Flexi-carbon Leg destroyed. 16678_ Imp. System Shield destroyed. 16681_ Mace follow-up attack on G-50 Soldier. 16683_ Hvy. Pick destroyed. 16684_ Slammed into G-50 Soldier. 16685_ AYZ3UD